bitfinex/quotes_SOLUSD_20240702
["timestamp","ask_amount","ask_price","bid_price","bid_amount"]
[1719889899781,12.14,149.0,148.97,23.4938]
[1719889899984,12.14,149.01,148.97,23.4938]
[1719889900184,16.2273,149.03,148.94,16.7847]
[1719889900410,16.2273,149.03,148.92,21.9738]
[1719889900411,6.713,148.97,148.92,21.9738]
[1719889900605,18.8524,148.98,148.93,6.7144]
[1719889900789,18.8524,148.98,148.93,18.8544]
[1719889901271,12.14,148.98,148.93,16.7858]
[1719889901466,12.14,148.98,148.94,12.14]
[1719889901685,12.14,148.98,148.94,18.8539]
[1719889901888,18.8524,148.98,148.93,35.6402]
[1719889902472,6.7128,148.97,148.93,35.6402]
[1719889902871,18.8524,148.98,148.93,35.6402]
[1719889904174,12.14,148.97,148.93,16.7858]
[1719889904396,18.8529,148.97,148.93,16.7858]
[1719889904988,12.14,148.96,148.93,16.7858]
[1719889905181,12.14,148.96,148.93,23.5]
[1719889905499,18.8529,148.97,148.93,23.5]
[1719889906693,18.8527,148.97,148.93,23.5]
[1719889907601,12.14,148.97,148.93,23.5]
[1719889909698,6.7127,148.97,148.93,23.5]
[1719889909903,18.8527,148.97,148.93,23.5]
[1719889910104,6.7127,148.97,148.93,35.64]
[1719889910604,25.0944,148.98,148.93,35.64]
[1719889910801,6.713,148.97,148.93,16.7858]
[1719889910996,18.853,148.97,148.93,16.7858]
[1719889911691,12.14,148.96,148.93,16.7858]
[1719889911893,18.853,148.97,148.93,16.7858]
[1719889912095,18.853,148.97,148.93,23.5002]
[1719889912400,50.14928617,149.02,148.94,12.14]
[1719889912611,12.14,148.99,148.94,12.14]
[1719889912991,33.37298617,149.02,148.95,16.7837]
[1719889913189,33.0903,149.02,148.97,12.14]
[1719889913391,6.7112,149.01,148.97,18.8526]
[1719889913709,6.7114,149.0,148.96,18.853]
[1719889916320,6.7119,148.99,148.95,23.4972]
[1719889916611,6.7115,149.0,148.96,12.14]
[1719889916907,6.7115,149.0,148.96,18.8531]
[1719889917296,6.7115,149.0,148.97,12.14]
[1719889917487,6.7119,148.99,148.97,12.14]
[1719889917683,6.712,148.99,148.96,12.14]
[1719889917902,6.712,148.99,148.96,13.48243489]
[1719889918097,6.7114,149.0,148.97,12.14]
[1719889920512,6.7119,148.99,148.96,12.14]
[1719889921017,6.7115,149.0,148.97,12.14]
[1719889923517,6.7118,148.99,148.97,12.14]
[1719889924315,6.7118,148.99,148.96,12.14]
[1719889924819,6.7118,148.99,148.97,12.14]
[1719889926713,6.7118,148.99,148.95,23.4972]
[1719889926896,6.7118,148.99,148.96,12.14]
[1719889927396,6.7124,148.98,148.96,12.14]
[1719889927596,6.7124,148.98,148.95,12.14]
[1719889928616,6.7124,148.98,148.94,6.7139]
[1719889928818,6.7124,148.98,148.95,12.14]
[1719889930519,39.99341206,149.03,148.94,16.7843]
[1719889930822,32.14,149.02,148.97,12.14]
[1719889931020,6.7111,149.01,148.97,12.14]
[1719889931412,32.14,149.02,148.97,12.14]
[1719889931618,32.14,149.02,148.94,116.7843]
[1719889931619,6.7121,148.99,148.96,12.14]
[1719889931915,6.7121,148.99,148.94,28.9243]
[1719889931916,6.7128,148.97,148.94,28.9243]
[1719889932121,6.7124,148.98,148.94,35.638]
[1719889932302,18.852,148.99,148.94,35.638]
[1719889933396,18.852,148.99,148.94,28.9243]
[1719889933604,6.7113,149.01,148.97,12.14]
[1719889933804,6.7113,149.01,148.97,18.8527]
[1719889934920,6.7113,149.01,148.97,12.14]
[1719889935518,6.7113,149.01,148.98,12.14]
[1719889936330,6.7114,149.0,148.98,12.14]
[1719889937112,6.7114,149.0,148.94,133.0577]
[1719889937113,36.777,149.02,148.94,133.0577]
[1719889937339,6.7119,148.99,148.97,12.14]
[1719889937633,6.7115,149.0,148.97,12.14]
[1719889938934,32.14,149.02,148.94,16.7843]
[1719889938935,48.9171,149.02,148.94,16.7843]
[1719889939234,6.7132,148.96,148.94,12.14]
[1719889939400,6.7128,148.97,148.94,12.14]
[1719889940136,6.7124,148.98,148.95,12.14]
[1719889941341,6.7124,148.98,148.94,12.14]
[1719889942267,6.7124,148.98,148.94,18.854]
[1719889942458,6.7124,148.98,148.95,12.14]
[1719889943664,6.712,148.99,148.95,12.14]
[1719889944040,18.8515,149.0,148.95,18.8533]
[1719889944349,6.7115,149.0,148.95,18.8533]
[1719889945662,6.712,148.99,148.94,6.7139]
[1719889945866,6.712,148.99,148.95,12.14]
[1719889946239,18.852,148.99,148.94,18.8539]
[1719889947164,6.712,148.99,148.95,12.14]
[1719889948764,6.7115,149.0,148.96,6.7131]
[1719889948964,18.8515,149.0,148.96,6.7131]
[1719889949151,6.7115,149.0,148.96,18.8531]
[1719889949778,6.7115,149.0,148.96,20.19549053]
[1719889950885,6.7115,149.0,148.97,12.14]
[1719889951083,6.711,149.01,148.97,12.14]
[1719889951885,6.7105,149.02,148.98,1.34235572]
[1719889952075,6.7105,149.02,148.99,13.48215388]
[1719889952278,24.26186819,149.07,148.99,13.48215388]
[1719889952279,6.7088,149.06,149.01,18.8506]
[1719889952484,6.7088,149.06,149.03,12.14]
[1719889953577,6.7093,149.05,149.02,12.14]
[1719889955583,6.7093,149.05,149.03,12.14]
[1719889957204,6.7088,149.06,149.03,12.14]
[1719889957409,18.7877,149.09,149.04,12.14]
[1719889957736,20.0,149.08,149.04,12.14]
[1719889958717,6.7088,149.06,149.04,12.14]
[1719889958995,6.7084,149.07,149.04,12.14]
[1719889959201,6.6477,149.09,149.04,12.14]
[1719889959508,6.709,149.06,149.04,12.14]
[1719889962912,38.8482,149.08,149.03,6.7099]
[1719889963220,6.7083,149.07,149.04,12.14]
[1719889964408,6.7083,149.07,149.05,12.14]
[1719889965124,6.7083,149.07,149.04,12.14]
[1719889966830,6.7083,149.07,149.04,13.48168138]
[1719889967040,6.7083,149.07,149.05,1.34163355]
[1719889967224,26.7079,149.08,149.05,1.34163355]
[1719889967720,26.7079,149.08,149.04,12.14]
[1719889968060,6.7083,149.07,149.04,12.14]
[1719889969729,20.0,149.08,149.04,12.14]
[1719889969920,6.7094,149.05,149.01,16.7763]
[1719889970237,6.7094,149.05,149.02,12.14]
[1719889970439,12.14,149.06,149.02,12.14]
[1719889970643,36.7698,149.08,149.02,12.14]
[1719889970644,12.14,149.07,149.02,12.14]
[1719889970931,12.14,149.07,149.0,1.34194462]
[1719889971136,12.14,149.07,149.02,12.14]
[1719889971336,6.71,149.03,149.02,12.14]
[1719889971710,6.7096,149.04,149.02,12.14]
[1719889973063,6.7092,149.05,149.02,12.14]
[1719889973845,6.7096,149.04,149.02,12.14]
[1719889974262,6.7096,149.04,149.01,12.14]
[1719889975139,43.76169524,149.08,148.98,16.7803]
[1719889975140,6.7108,149.02,148.98,16.7803]
[1719889975351,12.14,149.03,148.98,12.14]
[1719889975580,15.8103,149.05,148.96,15.0349]
[1719889975581,6.7117,149.0,148.97,12.14]
[1719889977634,6.7111,149.01,148.97,12.14]
[1719889978756,6.7114,149.0,148.96,18.8531]
[1719889979130,12.14,149.01,148.96,18.8531]
[1719889979131,18.851,149.01,148.96,18.8531]
[1719889979351,6.711,149.01,148.97,12.14]
[1719889980478,6.7106,149.02,148.98,12.14]
[1719889981665,6.711,149.01,148.98,12.14]
[1719889981860,6.711,149.01,148.97,18.8523]
[1719889982359,6.711,149.01,148.97,6.7123]
[1719889982561,6.7115,149.0,148.96,12.14]
[1719889983581,6.7115,149.0,148.96,18.8531]
[1719889984284,12.14,149.01,148.97,6.7124]
[1719889984478,18.851,149.01,148.97,6.7124]
[1719889984983,6.711,149.01,148.97,18.8524]
[1719889985678,6.473,149.04,148.98,30.26290991]
[1719889985885,20.0,149.03,148.99,20.19386945]
[1719889986085,15.8103,149.05,148.99,1.34216945]
[1719889986264,27.9503,149.05,149.0,12.14]
[1719889986465,27.9503,149.05,148.98,16.7806]
[1719889986784,6.7103,149.03,148.99,13.48212884]
[1719889988682,6.7105,149.02,148.99,13.48212884]
[1719889988859,6.7105,149.02,148.99,12.14]
[1719889990060,6.7105,149.02,148.99,13.48212998]
[1719889992388,6.7105,149.02,148.99,1.34212998]
[1719889992562,6.7105,149.02,148.99,13.48212998]
[1719889993390,6.7105,149.02,148.99,1.34212998]
[1719889993574,6.7105,149.02,148.98,35.6327]
[1719889994570,6.7105,149.02,148.99,12.14]
[1719889995172,6.7105,149.02,148.98,35.6327]
[1719889997389,6.2494,149.08,149.01,128.9171]
[1719889997591,6.7078,149.08,149.03,6.7099]
[1719889998280,28.5797,149.09,149.02,6.7104]
[1719889998480,12.14,149.08,149.03,12.14]
[1719890000078,6.7088,149.06,149.03,12.14]
[1719890000480,6.7083,149.07,149.03,12.14]
[1719890001295,6.7083,149.07,149.04,12.14]
[1719890005075,6.7087,149.06,149.04,12.14]
[1719890006185,6.7084,149.07,149.04,12.14]
[1719890008183,6.7087,149.06,149.01,123.4879]
[1719890008384,6.7092,149.05,149.02,12.14]
[1719890008603,6.7092,149.05,149.01,23.4879]
[1719890008812,6.7092,149.05,149.02,12.14]
[1719890009484,6.7092,149.05,149.03,12.14]
[1719890009686,6.7088,149.06,149.03,12.14]
[1719890012287,6.7088,149.06,149.02,18.8503]
[1719890014789,6.7088,149.06,149.03,12.14]
[1719890018248,6.7088,149.06,149.02,18.8503]
[1719890018942,6.7088,149.06,148.99,138.92605685]
[1719890018943,12.14,149.07,148.99,5.36725685]
[1719890019128,12.14,149.04,148.99,12.14]
[1719890019331,6.7107,149.02,148.99,12.14]
[1719890019531,12.14,149.01,148.96,12.14]
[1719890019744,12.14,149.0,148.95,16.7837]
[1719890019947,12.14,148.99,148.95,16.7837]
[1719890020131,18.8518,148.99,148.95,16.7837]
[1719890020664,18.8518,148.99,148.95,23.4973]
[1719890022064,6.7118,148.99,148.95,35.6373]
[1719890022267,18.8515,149.0,148.95,35.6373]
[1719890023672,18.8515,149.0,148.95,23.4973]
[1719890023970,18.8515,149.0,148.95,35.6373]
[1719890024750,18.8515,149.0,148.96,6.7131]
[1719890027344,6.711,149.01,148.97,6.7126]
[1719890027548,12.14,149.0,148.97,6.7126]
[1719890028147,12.14,149.0,148.95,12.14]
[1719890028352,6.7106,149.02,148.98,6.7121]
[1719890028353,12.14,149.01,148.98,6.7121]
[1719890028559,18.8506,149.02,148.98,6.7121]
[1719890029469,18.8506,149.02,148.97,35.634]
[1719890029848,12.14,149.02,148.97,35.634]
[1719890030150,6.711,149.01,148.97,28.9214]
[1719890030466,6.7119,148.99,148.95,6.7134]
[1719890030858,6.7119,148.99,148.95,18.8534]
[1719890031270,6.7119,148.99,148.95,6.7134]
[1719890031576,6.7119,148.99,148.95,18.8534]
[1719890032774,18.8519,148.99,148.95,6.7134]
[1719890034182,12.14,148.98,148.95,6.7134]
[1719890034366,12.14,148.97,148.94,16.785]
[1719890034954,12.14,148.97,148.94,23.4989]
[1719890035452,6.3519,149.01,148.91,16.7883]
[1719890035453,12.14,148.95,148.91,16.7883]
[1719890035675,12.14,148.94,148.91,23.5036]
[1719890036574,12.14,148.95,148.91,16.7883]
[1719890036790,12.14,148.95,148.92,6.7149]
[1719890039001,12.14,148.95,148.91,23.5036]
[1719890039502,12.14,148.94,148.91,23.5036]
[1719890040701,12.14,148.95,148.92,6.7149]
[1719890041298,18.8533,148.96,148.92,6.7149]
[1719890042302,12.14,148.95,148.91,23.5036]
[1719890042595,12.14,148.94,148.91,16.7883]
[1719890045699,16.376,148.99,148.88,16.7912]
[1719890045700,18.8546,148.93,148.88,16.7912]
[1719890045910,12.14,148.92,148.88,16.7912]
[1719890046403,18.8546,148.93,148.88,28.9312]
[1719890046604,18.8546,148.93,148.89,6.716]
[1719890047277,6.7155,148.91,148.86,12.14]
[1719890047476,18.8555,148.91,148.86,12.14]
[1719890047873,12.14,148.91,148.86,12.14]
[1719890048099,12.14,148.91,148.88,6.7167]
[1719890048509,12.14,148.91,148.87,23.5098]
[1719890048875,12.14,148.91,148.88,6.7168]
[1719890049098,6.7146,148.93,148.89,6.7162]
[1719890049307,12.14,148.93,148.9,6.7159]
[1719890050303,12.14,148.93,148.89,23.5068]
[1719890051005,6.7141,148.94,148.89,23.5068]
[1719890051174,20.0,148.93,148.89,35.6468]
[1719890051378,26.7146,148.93,148.89,35.6468]
[1719890052308,38.8546,148.93,148.89,23.5068]
[1719890052906,26.7146,148.93,148.89,23.5068]
[1719890053093,38.8546,148.93,148.89,23.5068]
[1719890053412,6.715,148.92,148.89,16.7906]
[1719890056008,6.715,148.92,148.88,6.7167]
[1719890056302,6.715,148.92,148.88,18.8567]
[1719890056508,38.8546,148.93,148.89,6.7162]
[1719890059480,38.8546,148.93,148.88,35.6483]
[1719890060497,6.715,148.92,148.88,35.6483]
[1719890061787,6.5151,148.96,148.9,12.14]
[1719890061989,6.7141,148.94,148.91,12.14]
[1719890063911,6.7138,148.95,148.91,18.8552]
[1719890064289,6.7138,148.95,148.91,12.14]
[1719890064700,6.7142,148.94,148.91,12.14]
[1719890067305,6.7142,148.94,148.9,23.5051]
[1719890067507,6.7142,148.94,148.91,12.14]
[1719890068592,6.7138,148.95,148.91,12.14]
[1719890069408,6.7133,148.96,148.92,6.7149]
[1719890069614,6.7124,148.98,148.94,18.8541]
[1719890069816,6.0138,149.0,148.96,18.8528]
[1719890070022,6.7124,148.98,148.96,12.14]
[1719890070312,6.7124,148.98,148.94,23.4981]
[1719890070313,6.7124,148.98,148.94,35.6381]
[1719890072012,6.7124,148.98,148.9,120.84]
[1719890072013,12.14,148.98,148.93,12.14]
[1719890072216,6.7136,148.95,148.91,23.5029]
[1719890072389,6.7136,148.95,148.92,12.14]
[1719890072593,6.7136,148.95,148.91,35.6429]
[1719890073423,6.7143,148.94,148.89,5.36801282]
[1719890073628,6.7143,148.94,148.91,12.14]
[1719890074050,12.14,148.94,148.88,16.7912]
[1719890074338,12.14,148.93,148.88,28.9312]
[1719890074526,18.8547,148.93,148.89,6.7162]
[1719890075397,12.14,148.92,148.85,22.20680307]
[1719890075605,18.8551,148.92,148.87,18.8569]
[1719890075803,6.7151,148.92,148.88,12.14]
[1719890076104,6.7151,148.92,148.88,18.8567]
[1719890076509,18.8551,148.92,148.88,6.7167]
[1719890077830,12.14,148.91,148.87,23.5099]
[1719890079614,12.14,148.9,148.87,16.7928]
[1719890080408,12.14,148.89,148.87,16.7928]
[1719890085036,12.14,148.9,148.87,16.7928]
[1719890085204,12.14,148.9,148.87,23.5099]
[1719890085411,18.8556,148.91,148.87,23.5099]
[1719890086538,22.2358,148.93,148.89,6.7163]
[1719890086713,22.2358,148.93,148.87,28.9328]
[1719890086714,32.14,148.92,148.88,6.7166]
[1719890086913,32.14,148.92,148.89,6.7163]
[1719890086914,20.0,148.92,148.89,6.7163]
[1719890087207,20.0,148.92,148.87,16.7928]
[1719890087208,38.8551,148.92,148.87,35.6496]
[1719890088535,38.8551,148.92,148.88,6.7167]
[1719890088737,6.7155,148.91,148.87,35.6497]
[1719890089839,6.7159,148.9,148.87,16.7928]
[1719890090020,18.8559,148.9,148.86,6.7176]
[1719890090227,6.7159,148.9,148.86,18.8576]
[1719890091042,18.8555,148.91,148.87,6.7172]
[1719890091541,6.7155,148.91,148.87,18.8572]
[1719890092545,6.7155,148.91,148.87,12.14]
[1719890092838,6.7155,148.91,148.87,18.8572]
[1719890093638,6.716,148.9,148.87,12.14]
[1719890094340,6.7165,148.89,148.86,16.7937]
[1719890094535,6.7165,148.89,148.85,18.858]
[1719890095035,6.7165,148.89,148.86,12.14]
[1719890096051,6.7165,148.89,148.85,18.858]
[1719890098540,18.856,148.9,148.85,18.858]
[1719890098945,18.856,148.9,148.86,6.7176]
[1719890099123,12.14,148.9,148.87,6.7172]
[1719890099322,6.7155,148.91,148.87,6.7172]
[1719890099323,18.8555,148.91,148.87,6.7172]
[1719890099742,6.7155,148.91,148.87,6.7172]
[1719890099949,12.14,148.91,148.88,6.7167]
[1719890100943,26.7151,148.92,148.88,6.7167]
[1719890101137,38.8551,148.92,148.88,6.7167]
[1719890101469,6.7156,148.91,148.87,35.65]
[1719890101939,6.716,148.9,148.87,16.7929]
[1719890102345,18.8554,148.91,148.87,16.7929]
[1719890102645,26.7151,148.92,148.88,12.14]
[1719890102832,26.7151,148.92,148.88,18.8568]
[1719890104029,40.59396819,148.97,148.89,16.7902]
[1719890104232,6.7142,148.94,148.9,20.19853052]
[1719890104439,6.7142,148.94,148.91,12.14]
[1719890107447,6.7142,148.94,148.9,18.8556]
[1719890108456,12.14,148.94,148.89,16.7902]
[1719890108751,6.7153,148.92,148.88,6.7167]
[1719890108954,6.7153,148.92,148.88,12.14]
[1719890109150,19.13936914,148.96,148.87,18.8571]
[1719890109151,6.7157,148.91,148.87,18.8571]
[1719890110441,6.7151,148.92,148.89,12.14]
[1719890110948,6.7151,148.92,148.88,12.14]
[1719890111342,6.7151,148.92,148.88,18.8567]
[1719890118678,6.7151,148.92,148.88,12.14]
[1719890119274,6.7151,148.92,148.88,18.8568]
[1719890120478,18.8547,148.93,148.88,18.8568]
[1719890120882,6.715,148.92,148.88,18.8568]
[1719890122749,12.14,148.93,148.88,12.14]
[1719890122954,18.8549,148.93,148.89,6.7162]
[1719890123171,6.7151,148.92,148.88,28.9316]
[1719890123676,6.7154,148.91,148.88,28.9316]
[1719890124263,6.7154,148.91,148.88,12.14]
[1719890124466,6.7154,148.91,148.87,18.8568]
[1719890124664,6.7154,148.91,148.87,6.7168]
[1719890124861,18.8554,148.91,148.87,6.7168]
[1719890125989,12.14,148.91,148.86,12.14]
[1719890126282,6.7176,148.87,148.82,23.5174]
[1719890126464,12.14,148.86,148.81,6.7198]
[1719890126667,12.14,148.86,148.81,18.8598]
[1719890127065,6.7183,148.85,148.81,18.8598]
[1719890127258,18.8578,148.86,148.81,18.8598]
[1719890127464,18.8573,148.87,148.82,6.7194]
[1719890127666,18.8573,148.87,148.82,18.8594]
[1719890127888,6.7173,148.87,148.83,18.859]
[1719890128456,6.7173,148.87,148.83,6.719]
[1719890128656,18.8573,148.87,148.83,6.719]
[1719890128881,6.7173,148.87,148.83,18.859]
[1719890131267,18.8568,148.88,148.84,6.7186]
[1719890131486,26.7172,148.87,148.84,12.14]
[1719890131784,6.7169,148.88,148.85,12.14]
[1719890132364,6.7165,148.89,148.85,18.8581]
[1719890132558,6.7165,148.89,148.86,12.14]
[1719890132771,6.7168,148.88,148.84,6.7184]
[1719890132969,6.7168,148.88,148.86,12.14]
[1719890133596,6.7168,148.88,148.85,12.14]
[1719890134269,6.7168,148.88,148.84,18.8584]
[1719890134468,12.14,148.89,148.83,16.7969]
[1719890134469,6.7174,148.87,148.83,16.7969]
[1719890134669,6.7174,148.87,148.83,28.9369]
[1719890134896,6.7177,148.86,148.83,28.9369]
[1719890135512,6.7177,148.86,148.82,6.7193]
[1719890135870,6.7177,148.86,148.83,12.14]
[1719890137096,18.8574,148.87,148.83,12.14]
[1719890137584,18.8574,148.87,148.82,6.7193]
[1719890137898,18.8574,148.87,148.82,18.8593]
[1719890138101,12.14,148.85,148.81,6.7198]
[1719890139681,18.8584,148.85,148.81,6.7198]
[1719890140292,12.14,148.84,148.8,16.8002]
[1719890141072,6.7199,148.81,148.77,16.8041]
[1719890141275,6.7199,148.81,148.76,6.7218]
[1719890141276,6.7218,148.77,148.69,16.2626]
[1719890141506,22.258,148.81,148.75,18.8624]
[1719890141801,6.7208,148.79,148.75,12.14]
[1719890142099,6.7213,148.78,148.73,16.808]
[1719890142306,6.7213,148.78,148.74,12.14]
[1719890142681,6.7236,148.73,148.7,0.8381857]
[1719890142893,22.258,148.81,148.72,12.14]
[1719890142894,12.14,148.77,148.72,12.14]
[1719890143094,6.7223,148.76,148.72,12.14]
[1719890143393,6.7223,148.76,148.7,0.8381857]
[1719890143589,6.7223,148.76,148.72,12.14]
[1719890144278,6.7223,148.76,148.71,6.724]
[1719890144484,6.7223,148.76,148.72,12.14]
[1719890144698,12.14,148.77,148.7,0.8381857]
[1719890144699,6.7242,148.72,148.7,0.8381857]
[1719890145008,12.14,148.74,148.7,0.8381857]
[1719890145301,20.0,148.73,148.7,0.8381857]
[1719890146009,26.7236,148.73,148.7,0.8381857]
[1719890146507,20.0,148.73,148.7,12.9781857]
[1719890146677,20.0,148.74,148.7,12.9781857]
[1719890147010,26.7235,148.74,148.7,0.8381857]
[1719890147181,6.7237,148.73,148.7,12.9781857]
[1719890147593,6.7237,148.73,148.7,0.8381857]
[1719890148099,6.724,148.72,148.7,0.8381857]
[1719890150188,18.8644,148.71,148.7,0.8381857]
[1719890150620,6.7244,148.71,148.7,0.8381857]
[1719890153011,6.724,148.72,148.7,0.8381857]
[1719890153322,32.14,148.74,148.7,0.8381857]
[1719890153323,6.7237,148.73,148.7,12.9781857]
[1719890153692,6.7237,148.73,148.7,0.8381857]
[1719890153997,26.7232,148.74,148.71,12.14]
[1719890154323,6.7237,148.73,148.71,12.14]
[1719890154815,9.43367847,148.77,148.72,12.14]
[1719890155128,6.7221,148.77,148.73,6.7235]
[1719890155412,6.7221,148.77,148.72,12.14]
[1719890155413,6.7221,148.77,148.72,18.8639]
[1719890155620,6.7222,148.76,148.72,18.8639]
[1719890155914,6.7222,148.76,148.75,12.14]
[1719890156303,6.7222,148.76,148.74,12.14]
[1719890157701,6.7222,148.76,148.71,23.5354]
[1719890157922,27.7883,148.79,148.74,12.14]
[1719890157923,6.7227,148.75,148.74,12.14]
[1719890158129,6.7227,148.75,148.73,12.14]
[1719890158917,6.7227,148.75,148.71,16.811]
[1719890159219,6.7232,148.74,148.72,12.14]
[1719890160230,6.7228,148.75,148.72,12.14]
[1719890160722,12.14,148.76,148.7,0.8381857]
[1719890161021,6.7239,148.73,148.7,12.9781857]
[1719890161529,6.7243,148.72,148.7,0.8381857]
[1719890163603,6.7244,148.71,148.7,0.8381857]
[1719890163924,38.8644,148.71,148.7,0.8381857]
[1719890165704,45.86830551,148.71,148.7,0.8381857]
[1719890166110,33.72830551,148.71,148.7,0.8381857]
[1719890166318,26.7244,148.71,148.7,0.8381857]
[1719890166495,33.73045039,148.71,148.7,0.8381857]
[1719890166699,20.0,148.71,148.7,0.8381857]
[1719890166899,26.7244,148.71,148.7,12.9781857]
[1719890167295,26.7244,148.71,148.7,0.8381857]
[1719890171209,26.7244,148.71,148.7,8.57e-05]
[1719890178714,6.7244,148.71,148.7,8.57e-05]
[1719890179637,6.7241,148.72,148.7,8.57e-05]
[1719890179941,6.7244,148.71,148.7,8.57e-05]
[1719890182928,26.7244,148.71,148.7,8.57e-05]
[1719890194146,26.7244,148.71,148.7,12.1800857]
[1719890194325,26.7244,148.71,148.7,8.57e-05]
[1719890198056,26.7244,148.71,148.7,12.1800857]
[1719890198428,6.7243,148.72,148.7,12.1800857]
[1719890198637,6.7243,148.72,148.71,12.18]
[1719890199760,26.7243,148.72,148.71,12.18]
[1719890199965,6.7244,148.71,148.7,8.57e-05]
[1719890200130,6.7244,148.71,148.7,12.1800857]
[1719890200861,20.0,148.72,148.7,12.1800857]
[1719890201049,26.7241,148.72,148.7,12.1800857]
[1719890201751,6.7244,148.71,148.7,12.1800857]
[1719890206568,6.7244,148.71,148.7,8.57e-05]
[1719890206863,6.7244,148.71,148.7,12.1800857]
[1719890207366,20.0,148.72,148.7,12.1800857]
[1719890207569,6.7244,148.71,148.7,12.1800857]
[1719890208762,6.7244,148.71,148.7,8.57e-05]
[1719890209952,26.7244,148.71,148.7,8.57e-05]
[1719890212946,39.20398674,148.71,148.7,8.57e-05]
[1719890213167,47.39918958,148.71,148.7,8.57e-05]
[1719890213477,52.03998958,148.71,148.7,8.57e-05]
[1719890213657,35.21918958,148.71,148.7,8.57e-05]
[1719890214166,47.39918958,148.71,148.7,8.57e-05]
[1719890214370,68.70654666,148.71,148.7,8.57e-05]
[1719890215757,68.70654666,148.71,148.58,100.0]
[1719890215758,6.7289,148.62,148.58,100.0]
[1719890216370,6.7289,148.62,148.58,106.7302]
[1719890216573,6.7282,148.63,148.61,12.18]
[1719890216859,6.7282,148.63,148.62,12.18]
[1719890217062,26.7282,148.63,148.62,12.18]
[1719890217583,6.7288,148.62,148.58,100.0]
[1719890217891,6.7288,148.62,148.61,12.18]
[1719890220592,6.7288,148.62,148.58,100.0]
[1719890220593,6.7303,148.58,148.57,15.0852]
[1719890220889,45.8167,148.65,148.57,27.2652]
[1719890220890,6.7297,148.6,148.57,27.2652]
[1719890221297,6.73,148.59,148.57,27.2652]
[1719890221486,16.8183,148.65,148.57,27.2652]
[1719890221660,6.7289,148.62,148.57,33.996]
[1719890222288,6.729,148.61,148.58,1.3457567]
[1719890222478,6.729,148.61,148.6,12.18]
[1719890223422,6.7286,148.62,148.6,12.18]
[1719890223694,6.7286,148.62,148.61,12.18]
[1719890223865,6.7294,148.61,148.57,31.9118]
[1719890224070,6.7294,148.61,148.6,12.18]
[1719890227602,6.7294,148.61,148.57,38.6426]
[1719890227908,6.7294,148.61,148.6,12.18]
[1719890231423,6.7294,148.61,148.57,38.6426]
[1719890231619,6.7294,148.61,148.6,12.18]
[1719890233104,6.7295,148.6,148.55,7.5693857]
[1719890233404,6.7295,148.6,148.55,12.86669647]
[1719890233606,6.7295,148.6,148.56,6.731]
[1719890234204,6.7295,148.6,148.59,12.18]
[1719890234709,6.729,148.61,148.59,12.18]
[1719890234910,6.729,148.61,148.6,12.18]
[1719890238512,6.7294,148.6,148.56,6.7312]
[1719890238887,6.7291,148.61,148.6,12.18]
[1719890243311,6.7291,148.61,148.57,6.7306]